bitfinex/quotes_SOLUSD_20240725
["timestamp","ask_amount","ask_price","bid_price","bid_amount"]
[1721922661153,5.8603,170.64,170.59,11.9845]
[1721922661360,20.0,170.66,170.59,20.777]
[1721922661656,5.8608,170.63,170.59,20.777]
[1721922661952,20.0,170.66,170.62,5.8609]
[1721922662154,20.0,170.67,170.62,5.8609]
[1721922662449,5.8605,170.64,170.59,11.9846]
[1721922662662,20.0,170.67,170.59,11.9846]
[1721922662834,5.8614,170.61,170.57,22.2446]
[1721922663032,29.85,170.65,170.58,5.8622]
[1721922663248,5.8608,170.63,170.58,5.8622]
[1721922663428,29.85,170.65,170.59,14.6543]
[1721922663845,20.0,170.67,170.59,14.6543]
[1721922664055,5.8607,170.63,170.59,14.6543]
[1721922664227,29.85,170.65,170.57,16.3823]
[1721922664428,20.0,170.67,170.61,14.6527]
[1721922664656,29.85,170.67,170.61,14.6527]
[1721922664952,20.0,170.66,170.62,5.8608]
[1721922665248,25.8596,170.66,170.62,5.8609]
[1721922665649,20.0,170.66,170.62,5.8609]
[1721922665947,5.8593,170.67,170.62,5.8609]
[1721922666747,5.8589,170.68,170.61,14.6527]
[1721922667330,5.8593,170.67,170.63,5.8605]
[1721922667634,25.33325189,170.75,170.74,5.8568]
[1721922667635,1.02015189,170.75,170.74,5.8568]
[1721922667951,0.7998558,170.78,170.66,1.17124994]
[1721922668159,0.7998558,170.78,170.77,5.8558]
[1721922668332,0.7998558,170.78,170.67,6.4275]
[1721922668525,0.7998558,170.78,170.68,46.17107345]
[1721922668732,0.7998558,170.78,170.77,5.8558]
[1721922669655,0.7998558,170.78,170.76,5.856]
[1721922670336,0.7998558,170.78,170.75,30.5185]
[1721922670337,0.7998558,170.78,170.75,36.3749]
[1721922670552,0.7998558,170.78,170.76,5.8561]
[1721922670754,0.7998558,170.78,170.77,5.8558]
[1721922671643,0.7998558,170.78,170.75,36.3747]
[1721922671958,0.7998558,170.78,170.75,14.6406]
[1721922672856,0.7998558,170.78,170.75,20.497]
[1721922673356,0.7998558,170.78,170.77,5.8558]
[1721922674352,0.7998558,170.78,170.76,5.8561]
[1721922674657,0.7998558,170.78,170.75,5.8564]
[1721922674857,0.7998558,170.78,170.74,5.8568]
[1721922675162,0.7998558,170.78,170.74,5.8565]
[1721922675461,0.7998558,170.78,170.75,5.8564]
[1721922675869,0.7998558,170.78,170.76,5.856]
[1721922676040,0.7998558,170.78,170.77,5.8558]
[1721922676440,0.7998558,170.78,170.76,14.6396]
[1721922676441,0.7998558,170.78,170.76,20.4957]
[1721922676652,0.7998558,170.78,170.72,14.6433]
[1721922677047,0.7998558,170.78,170.73,5.8571]
[1721922677259,0.7998558,170.78,170.75,14.6411]
[1721922677764,0.7998558,170.78,170.76,5.8561]
[1721922677937,0.7998558,170.78,170.75,14.6411]
[1721922677938,0.7998558,170.78,170.77,5.8558]
[1721922682043,0.7998558,170.78,170.77,23.19066592]
[1721922682948,0.7998558,170.78,170.77,22.0198]
[1721922683155,0.7998558,170.78,170.77,23.19059693]
[1721922683962,0.7998558,170.78,170.77,68.19059693]
[1721922684166,0.4252,170.83,170.82,20.4893]
[1721922685350,389.2,170.91,170.9,5.8513]
[1721922685642,389.2,170.91,170.89,14.6284]
[1721922685643,5.8504,170.93,170.89,14.6284]
[1721922686060,5.8504,170.93,170.89,20.48]
[1721922686244,5.85,170.94,170.89,20.48]
[1721922686451,0.7998558,170.95,170.89,14.6284]
[1721922686765,5.8492,170.97,170.92,5.8504]
[1721922686972,35.6982,171.0,170.93,14.6251]
[1721922687146,29.85,171.0,170.95,5.8495]
[1721922687473,29.85,171.0,170.93,14.6251]
[1721922687654,29.85,170.97,170.85,15.8065]
[1721922687857,5.8509,170.92,170.87,5.8523]
[1721922688068,29.85,170.97,170.85,21.6592]
[1721922688257,14.6263,170.93,170.85,15.8065]
[1721922688572,5.8513,170.9,170.85,21.6595]
[1721922688743,44.4757,170.94,170.85,15.8065]
[1721922688945,45.0,170.93,170.85,15.8065]
[1721922689142,45.0,170.93,170.85,21.6593]
[1721922689143,5.8514,170.9,170.85,21.6593]
[1721922689352,44.4775,170.91,170.81,30.4189]
[1721922689548,44.4775,170.91,170.8,6.4325]
[1721922689549,29.85,170.88,170.77,5.8554]
[1721922689771,29.85,170.88,170.76,6.4325]
[1721922689772,5.8536,170.84,170.79,5.8548]
[1721922690162,20.0,170.87,170.76,6.4325]
[1721922690351,5.8538,170.83,170.78,5.8554]
[1721922690549,20.0,170.87,170.77,1.17091814]
[1721922690769,5.852,170.88,170.83,5.8536]
[1721922691163,5.852,170.88,170.81,14.6354]
[1721922691164,5.8527,170.86,170.81,14.6354]
[1721922691365,5.8524,170.87,170.82,5.854]
[1721922691564,5.8524,170.87,170.83,5.8537]
[1721922691858,5.8521,170.88,170.83,5.8537]
[1721922692060,5.8524,170.87,170.82,5.8541]
[1721922692578,5.8524,170.87,170.81,14.6354]
[1721922692579,34.6296,170.89,170.77,14.6387]
[1721922692767,45.0,170.88,170.77,14.6387]
[1721922693080,5.8543,170.82,170.77,20.4944]
[1721922693257,5.8543,170.82,170.78,5.8554]
[1721922693463,5.8543,170.82,170.77,20.4944]
[1721922693863,5.8538,170.83,170.78,5.8554]
[1721922694169,14.6317,170.87,170.78,5.8554]
[1721922694170,5.8541,170.82,170.78,5.8554]
[1721922694373,5.8548,170.8,170.76,6.4325]
[1721922694559,5.8548,170.8,170.74,14.6419]
[1721922694560,51.04,170.85,170.72,6.5814]
[1721922694760,5.8563,170.76,170.72,6.5814]
[1721922694971,5.8557,170.78,170.73,5.8571]
[1721922695579,5.8551,170.79,170.74,5.8567]
[1721922695951,5.8551,170.79,170.72,6.5814]
[1721922695952,5.8561,170.77,170.72,12.4388]
[1721922696154,14.6355,170.82,170.71,30.8124]
[1721922696365,5.8555,170.78,170.71,30.8124]
[1721922696560,5.8554,170.79,170.74,5.8568]
[1721922697450,5.8556,170.78,170.73,20.4995]
[1721922697653,5.8556,170.78,170.71,16.168]
[1721922697654,65.0,170.81,170.71,16.168]
[1721922697860,5.8563,170.76,170.71,22.0258]
[1721922698065,65.0,170.81,170.7,20.5034]
[1721922698066,5.8568,170.75,170.7,20.5034]
[1721922698261,5.8562,170.76,170.71,5.8577]
[1721922698470,5.856,170.77,170.72,5.8574]
[1721922698656,5.8561,170.76,170.71,7.02933369]
[1721922698873,5.8561,170.76,170.71,5.8578]
[1721922699074,119.14343929,170.81,170.72,14.6433]
[1721922699295,5.8556,170.78,170.73,5.8569]
[1721922699493,113.0167,170.81,170.72,14.6433]
[1721922699494,50.8558,170.77,170.72,20.5007]
[1721922699695,14.6385,170.79,170.69,14.646]
[1721922699893,14.6402,170.77,170.68,6.5814]
[1721922700083,5.8576,170.72,170.68,12.4402]
[1721922700387,5.8572,170.73,170.69,5.8584]
[1721922700589,5.8572,170.73,170.68,12.4402]
[1721922701083,5.8569,170.74,170.69,5.8585]
[1721922701596,5.8572,170.73,170.69,5.8585]
[1721922701893,14.6402,170.77,170.69,5.8582]
[1721922701894,5.8569,170.74,170.69,5.8582]
[1721922702288,5.8565,170.75,170.7,5.8581]
[1721922702499,45.0,170.74,170.7,5.8581]
[1721922702672,45.0,170.74,170.68,14.6465]
[1721922702877,45.0,170.74,170.7,5.8581]
[1721922703081,45.0,170.74,170.68,20.5052]
[1721922703404,45.0,170.74,170.66,5.8595]
[1721922703405,5.8579,170.71,170.66,5.8595]
[1721922703611,45.0,170.74,170.66,5.8595]
[1721922703612,5.8583,170.7,170.66,5.8595]
[1721922703781,5.8579,170.71,170.66,5.8595]
[1721922704700,45.0,170.74,170.65,20.5094]
[1721922704873,20.0,170.73,170.65,20.5094]
[1721922705209,5.8582,170.7,170.65,20.5094]
[1721922705412,33.38,170.72,170.6,14.6538]
[1721922705578,65.0,170.71,170.6,14.6538]
[1721922705776,79.6452,170.71,170.63,5.8605]
[1721922706092,79.6452,170.71,170.61,5.861]
[1721922706391,5.8597,170.66,170.61,5.861]
[1721922706601,5.86,170.65,170.61,5.861]
[1721922706808,5.86,170.65,170.6,14.6538]
[1721922706809,45.0,170.64,170.57,21.1738]
[1721922707103,5.8606,170.63,170.58,5.8622]
[1721922707504,21.1941,170.68,170.59,14.6542]
[1721922707676,20.0,170.67,170.61,5.8612]
[1721922707876,5.8598,170.66,170.61,5.8612]
[1721922708101,20.0,170.67,170.64,5.86]
[1721922708308,20.0,170.67,170.57,6.5173]
[1721922708309,388.3583558,170.7,170.65,5.8598]
[1721922708479,382.4998558,170.7,170.64,5.8601]
[1721922708682,382.4998558,170.7,170.63,14.651]
[1721922708901,5.8595,170.67,170.63,14.651]
[1721922709277,382.4998558,170.7,170.6,14.654]
[1721922709478,382.4998558,170.7,170.57,6.5173]
[1721922709479,5.8592,170.68,170.62,14.6519]
[1721922709688,50.8593,170.67,170.63,5.8603]
[1721922710104,45.0,170.67,170.63,5.8603]
[1721922710391,50.8593,170.67,170.63,5.8603]
[1721922711199,45.0,170.67,170.58,14.6551]
[1721922711379,45.0,170.67,170.55,15.0051]
[1721922711380,37.66,170.66,170.55,15.0051]
[1721922711586,5.862,170.59,170.54,5.8635]
[1721922711785,5.8625,170.58,170.53,6.2927]
[1721922712098,5.8625,170.58,170.53,12.1565]
[1721922713105,5.8625,170.58,170.53,6.2927]
[1721922713306,5.8625,170.58,170.53,12.1564]
[1721922713501,5.8625,170.58,170.54,5.8636]
[1721922713683,5.8621,170.59,170.54,5.8636]
[1721922713883,50.8624,170.58,170.53,12.1567]
[1721922714086,45.0,170.58,170.54,5.8637]
[1721922714500,397.1511558,170.64,170.53,6.2927]
[1721922714718,397.1511558,170.64,170.57,5.8626]
[1721922714719,25.8608,170.63,170.57,5.8626]
[1721922715008,20.0,170.63,170.57,5.8626]
[1721922715314,5.861,170.62,170.57,5.8625]
[1721922715522,5.8621,170.59,170.53,6.2927]
[1721922715704,37.66,170.63,170.52,15.4600558]
[1721922715887,5.862,170.59,170.54,5.8637]
[1721922716082,5.8614,170.61,170.56,5.8629]
[1721922716286,20.0,170.63,170.56,5.8629]
[1721922716587,5.8616,170.6,170.54,14.6585]
[1721922717304,5.8613,170.62,170.57,5.8626]
[1721922717506,5.8617,170.6,170.56,5.8629]
[1721922717805,50.8614,170.61,170.56,5.8629]
[1721922718819,5.8617,170.6,170.56,5.8629]
[1721922719690,50.8614,170.61,170.56,5.8629]
[1721922719891,50.8614,170.61,170.57,5.8626]
[1721922720087,254.1,170.7,170.55,1.17253212]
[1721922720293,254.1,170.7,170.52,0.7998558]
[1721922720294,397.1447558,170.71,170.63,5.8604]
[1721922720516,382.4998558,170.71,170.69,5.8583]
[1721922720702,16.4933,170.76,170.61,16.1927762]
[1721922720905,23.26463223,170.77,170.68,14.6467]
[1721922721101,5.8579,170.71,170.66,12.3338]
[1721922721303,5.859,170.68,170.62,21.0008]
[1721922721501,14.6419,170.75,170.62,6.3485]
[1721922721701,6.2671,170.77,170.62,7.5202559]
[1721922721912,5.8559,170.77,170.72,5.8572]
[1721922722207,5.8555,170.78,170.73,5.857]
[1721922722403,382.4998558,170.81,170.72,14.6438]
[1721922722713,5.8562,170.76,170.72,14.6438]
[1721922723408,14.635,170.83,170.73,1.17143802]
[1721922723913,5.8551,170.79,170.74,5.8568]
[1721922725206,5.8555,170.78,170.73,5.8571]
[1721922725809,5.8558,170.77,170.73,5.8571]
[1721922725990,5.8555,170.78,170.73,5.8571]
[1721922726194,5.8544,170.82,170.75,14.6409]
[1721922726389,45.0,170.81,170.75,14.6409]
[1721922726600,45.0,170.83,170.75,14.6409]
[1721922726895,45.0,170.83,170.75,20.4972]
[1721922727315,45.0,170.84,170.72,36.7661]
[1721922727611,5.8555,170.78,170.72,36.7661]
[1721922727791,5.8548,170.8,170.75,5.8564]
[1721922727997,5.8552,170.79,170.74,5.8567]
[1721922728204,5.8555,170.78,170.74,5.8567]
[1721922728412,5.8551,170.8,170.72,22.1224]
[1721922728925,34.635,170.83,170.72,22.1224]
[1721922729110,14.6371,170.8,170.72,27.9799]
[1721922729311,5.8562,170.76,170.72,22.1224]
[1721922729904,5.8565,170.75,170.72,22.1224]
[1721922730199,5.8561,170.77,170.71,5.8578]
[1721922730403,50.8562,170.76,170.71,5.8578]
[1721922730617,415.8798558,170.82,170.68,6.6312]
[1721922730919,65.0,170.81,170.74,14.6416]
[1721922731300,20.0,170.81,170.74,14.6416]
[1721922731625,382.4998558,170.82,170.78,5.8552]
[1721922731922,382.4998558,170.82,170.81,5.8544]
[1721922732221,5.8525,170.87,170.82,5.8538]
[1721922732529,5.8525,170.87,170.79,6.6587]
[1721922732530,16.98814885,170.9,170.79,6.6587]
[1721922732695,51.04,170.88,170.79,6.6587]
[1721922733015,51.04,170.88,170.74,21.1337]
[1721922733214,5.8547,170.81,170.76,5.8559]
[1721922733393,5.8541,170.82,170.77,5.8557]
[1721922733597,5.8541,170.82,170.76,14.6395]
[1721922733598,5.8545,170.81,170.76,14.6395]
[1721922734023,5.8545,170.81,170.76,20.4953]
[1721922734205,5.8538,170.83,170.78,5.8554]
[1721922734406,45.0,170.82,170.78,5.8554]
[1721922734604,45.0,170.82,170.76,14.6395]
[1721922734810,5.8537,170.84,170.79,5.855]
[1721922735128,382.4998558,170.87,170.81,5.8544]
[1721922735129,5.8529,170.86,170.81,5.8544]
[1721922735296,5.8532,170.85,170.81,5.8544]
[1721922735496,5.8524,170.87,170.83,5.8536]
[1721922735701,5.8524,170.87,170.83,14.6343]
[1721922735895,5.8527,170.86,170.82,5.854]
[1721922736121,14.6294,170.89,170.8,14.6366]
[1721922736323,5.8536,170.84,170.8,14.6366]
[1721922736522,5.8531,170.85,170.81,5.8544]
[1721922736831,14.6294,170.89,170.77,14.6391]
[1721922737124,5.8538,170.83,170.77,14.6391]
[1721922737720,32.2915,170.87,170.77,20.4946]
[1721922737924,45.0,170.86,170.77,20.4946]
[1721922738119,5.854,170.83,170.78,5.8552]
[1721922738427,45.0,170.86,170.77,20.4948]
[1721922738628,45.0,170.86,170.77,14.6391]
[1721922738811,5.8547,170.81,170.77,14.6391]
[1721922739136,5.8542,170.82,170.77,20.4947]
[1721922739341,20.0,170.85,170.77,14.6391]
[1721922739514,45.0,170.84,170.8,5.8547]
[1721922739842,20.0,170.85,170.74,6.4919]
[1721922740031,5.8543,170.82,170.77,5.8557]
[1721922740230,5.8538,170.83,170.78,5.8553]
[1721922740412,20.0,170.85,170.81,5.8544]
[1721922740736,274.1,170.95,170.82,5.8539]
[1721922740737,48.008,170.91,170.82,5.8539]
[1721922741036,5.8526,170.87,170.82,5.8539]
[1721922741409,5.8528,170.86,170.82,5.8539]
[1721922741612,5.8531,170.85,170.8,20.4908]
[1721922741910,14.6297,170.89,170.79,5.8551]
[1721922742129,65.0,170.88,170.79,5.8551]
[1721922742528,5.8538,170.83,170.79,5.855]
[1721922742926,5.8535,170.84,170.79,5.855]
[1721922743109,5.8535,170.84,170.8,5.8547]
[1721922743309,5.853,170.86,170.81,5.8544]
[1721922743511,5.8534,170.84,170.79,14.6373]
[1721922743727,5.8534,170.84,170.79,20.4923]
[1721922743933,5.8531,170.85,170.8,5.8547]
[1721922745117,5.8537,170.83,170.79,20.4923]
[1721922745721,14.6323,170.86,170.76,20.4962]
[1721922745940,14.6339,170.84,170.74,6.4919]
[1721922746119,20.0,170.83,170.74,6.4919]
[1721922746314,5.8552,170.79,170.74,6.4919]
[1721922747347,5.8555,170.78,170.74,12.3486]
[1721922747677,5.8558,170.77,170.74,6.4919]
[1721922747814,5.8555,170.78,170.74,6.4919]
[1721922748011,5.855,170.8,170.74,6.4919]
[1721922748214,45.0,170.79,170.76,5.8561]
[1721922748413,45.0,170.8,170.76,5.8561]
[1721922749267,50.8549,170.8,170.76,5.8561]
[1721922750340,5.8551,170.79,170.75,14.6408]
[1721922750650,5.8554,170.78,170.74,6.4919]
[1721922751469,5.8554,170.78,170.73,21.0188]
[1721922751470,5.8561,170.77,170.73,15.1618]
[1721922751678,45.0,170.8,170.73,15.1618]
[1721922751964,34.6382,170.79,170.73,15.1618]
[1721922752174,45.0,170.78,170.7,5.8582]
[1721922752350,20.0,170.77,170.7,5.8582]
[1721922752557,45.0,170.76,170.7,5.8582]
[1721922752943,45.0,170.76,170.71,20.5017]
[1721922753170,45.0,170.76,170.74,5.8567]
[1721922753368,5.8555,170.78,170.74,5.8567]
[1721922753543,50.8558,170.77,170.73,14.6424]
[1721922753744,50.8558,170.77,170.73,20.4995]
[1721922753964,45.0,170.77,170.73,20.4995]
[1721922754184,1.01979368,170.83,170.76,5.8561]
[1721922754475,35.76001449,170.84,170.76,5.8561]
[1721922754664,5.8548,170.8,170.75,20.4973]
[1721922754969,5.8545,170.81,170.76,5.856]
[1721922755215,5.8548,170.8,170.75,20.9745]
[1721922755350,5.8548,170.8,170.75,26.8309]
[1721922756581,5.8555,170.78,170.75,6.3336]
[1721922756756,45.0,170.77,170.71,6.1774]
[1721922756960,5.8569,170.74,170.71,6.1774]
[1721922757343,5.8569,170.74,170.69,20.5044]
[1721922757344,5.8566,170.75,170.7,5.8581]
[1721922757544,5.8576,170.72,170.68,16.0249]
[1721922757781,5.8584,170.7,170.68,16.0249]
[1721922758364,5.8579,170.71,170.68,16.0249]
[1721922758979,45.0,170.77,170.68,30.6717]
[1721922759199,20.0,170.76,170.68,16.0249]
[1721922759357,5.8565,170.75,170.71,5.8575]
[1721922759558,5.8565,170.75,170.7,20.5032]
[1721922759757,20.0,170.76,170.71,5.8578]
[1721922759989,25.8562,170.76,170.71,5.8578]
[1721922760505,5.8565,170.75,170.71,5.8578]
[1721922760792,5.8569,170.74,170.7,20.5031]
[1721922760958,45.0,170.73,170.68,16.0249]
[1721922761164,5.8581,170.71,170.68,16.0249]
[1721922761471,5.8596,170.66,170.64,15.1854]
[1721922761675,5.8599,170.65,170.64,15.1854]
[1721922761864,62.66,170.73,170.62,6.1635]
[1721922761865,14.647,170.69,170.62,6.1635]
[1721922762065,5.8601,170.65,170.62,6.1635]
[1721922762567,14.647,170.69,170.58,5.862]
[1721922762568,17.66,170.69,170.58,5.862]
[1721922762798,17.66,170.69,170.52,16.6139558]
[1721922762799,51.04,170.63,170.52,16.6139558]
[1721922763006,5.863,170.56,170.52,16.6139558]
[1721922763307,5.8634,170.55,170.52,0.7998558]
[1721922763587,45.0,170.54,170.52,0.7998558]
[1721922764194,5.864,170.53,170.52,0.7998558]
[1721922764371,50.864,170.53,170.52,0.7998558]
[1721922765286,70.864,170.53,170.52,0.7998558]
[1721922767395,389.2,170.58,170.52,0.7998558]
[1721922767723,20.0,170.57,170.52,0.7998558]
[1721922767874,45.0,170.56,170.52,0.7998558]
[1721922768081,20.0,170.55,170.52,0.7998558]
[1721922768271,45.0,170.54,170.52,0.7998558]
[1721922768786,5.864,170.53,170.52,0.7998558]
[1721922768999,50.864,170.53,170.52,0.7998558]
[1721922769788,70.864,170.53,170.52,0.7998558]
[1721922770091,65.0,170.53,170.52,0.7998558]
[1721922770888,389.2,170.58,170.52,0.7998558]
[1721922771106,5.8634,170.55,170.52,0.7998558]
[1721922771310,20.0,170.54,170.52,0.7998558]
[1721922771893,37.66,170.57,170.52,0.7998558]
[1721922772207,5.864,170.53,170.52,0.7998558]
[1721922772410,50.864,170.53,170.52,0.7998558]
[1721922772583,50.864,170.53,170.36,3.49117536]
[1721922772584,32.3246,170.48,170.35,0.7998558]
[1721922772788,20.0,170.47,170.35,0.7998558]
[1721922772986,45.0,170.46,170.38,5.8691]
[1721922773402,20.0,170.45,170.38,5.8691]
[1721922773705,20.0,170.45,170.38,14.6723]
[1721922773903,20.0,170.45,170.41,14.6704]
[1721922774139,45.0,170.46,170.41,14.6704]
[1721922774640,50.8665,170.46,170.41,20.5382]
[1721922775013,50.8665,170.46,170.37,14.6738]
[1721922775014,45.0,170.46,170.37,14.6738]
[1721922775335,45.0,170.46,170.37,20.543]
[1721922775527,45.0,170.46,170.38,5.8692]
[1721922775719,45.0,170.47,170.39,5.8687]
[1721922775915,45.0,170.47,170.35,0.7998558]
[1721922775916,20.0,170.46,170.35,0.7998558]
[1721922776229,5.867,170.45,170.38,14.673]
[1721922776419,45.0,170.44,170.38,14.673]
[1721922776624,45.0,170.44,170.4,5.8682]
[1721922776816,5.867,170.45,170.4,5.8682]
[1721922777142,25.8665,170.46,170.41,5.8681]
[1721922777351,25.8665,170.46,170.35,0.7998558]
[1721922777352,20.0,170.46,170.4,14.6705]
[1721922777638,78.395293,170.52,170.39,5.8688]
[1721922777639,5.8674,170.44,170.39,5.8688]
[1721922777813,5.8674,170.44,170.37,14.6738]
[1721922777814,409.2,170.49,170.37,14.6738]
[1721922778012,5.8668,170.45,170.4,5.8684]
[1721922778212,5.8672,170.44,170.39,5.8688]
[1721922778414,5.8672,170.44,170.37,14.6738]
[1721922778624,5.8665,170.46,170.4,5.8682]
[1721922778837,50.867,170.45,170.4,5.8682]
[1721922779946,5.8678,170.42,170.36,14.6747]
[1721922780120,45.0,170.45,170.38,5.8692]
[1721922780532,45.0,170.45,170.36,14.6747]
[1721922780839,20.0,170.44,170.35,0.7998558]
[1721922781048,5.8686,170.4,170.35,6.6699558]
[1721922781224,52.3284,170.44,170.35,0.7998558]
[1721922781560,5.8686,170.4,170.35,6.6700558]
[1721922781744,68.0484,170.44,170.35,6.6700558]
[1721922781745,68.0484,170.44,170.35,0.7998558]
[1721922781929,50.8675,170.43,170.38,5.869]
[1721922782124,20.0,170.42,170.36,14.6742]
[1721922782343,389.2,170.47,170.38,14.6722]
[1721922782538,33.38,170.48,170.38,14.6722]
[1721922782730,5.8675,170.43,170.38,14.6722]
[1721922782936,17.66,170.48,170.38,14.6722]
[1721922782937,5.8679,170.42,170.38,20.5413]
[1721922783160,5.8679,170.42,170.38,14.6722]
[1721922783458,5.8679,170.42,170.38,20.5414]
[1721922783654,12.9327035,170.49,170.38,14.6722]
[1721922783825,20.0,170.48,170.38,14.6722]
[1721922784033,5.8665,170.46,170.41,5.8679]
[1721922784255,9.4792541,170.5,170.4,14.6708]
[1721922784450,5.8657,170.49,170.4,14.6708]
[1721922784769,5.8657,170.49,170.42,5.8675]
[1721922785447,50.8659,170.48,170.42,5.8675]
[1721922785659,20.0,170.47,170.42,5.8675]
[1721922785855,45.0,170.46,170.42,5.8675]
[1721922786061,20.0,170.47,170.43,5.8674]
[1721922786231,1.021693,170.52,170.46,14.6656]
[1721922786434,389.2,170.55,170.5,5.865]
[1721922786739,389.2,170.55,170.5,14.662]
[1721922786935,5.8626,170.58,170.51,5.8646]
[1721922787458,39.242,170.59,170.5,14.662]
[1721922787647,6.79977109,170.6,170.52,5.8643]
[1721922787849,5.8617,170.6,170.53,5.8637]
[1721922788035,406.86,170.63,170.52,14.6603]
[1721922788235,1.02105788,170.59,170.52,14.6603]
[1721922788436,17.66,170.59,170.43,21.6329]
[1721922788650,17.66,170.55,170.44,5.8671]
[1721922788863,5.8648,170.51,170.44,5.8671]
[1721922789065,5.8652,170.5,170.43,42.1689]
[1721922789447,5.8654,170.49,170.43,42.1689]
[1721922790465,5.865,170.51,170.43,42.1689]
[1721922790666,70.8652,170.5,170.43,42.1689]
[1721922790845,50.8652,170.5,170.43,42.1689]
[1721922792043,5.8658,170.48,170.43,21.6329]
[1721922792239,45.0,170.5,170.43,21.6329]
[1721922792458,45.0,170.47,170.43,21.6329]
[1721922792659,45.0,170.47,170.43,27.5003]
[1721922792868,45.0,170.48,170.43,27.5003]
[1721922793038,50.8656,170.49,170.43,21.6329]
[1721922793240,45.0,170.49,170.43,21.6329]
[1721922793567,45.0,170.49,170.43,27.5003]
[1721922794167,45.0,170.49,170.45,5.8667]
[1721922794464,45.0,170.5,170.43,27.5001]
[1721922794674,5.8654,170.49,170.43,27.5001]
[1721922795634,45.0,170.48,170.43,21.6329]
[1721922795836,45.0,170.5,170.43,21.6329]
[1721922796063,14.6614,170.52,170.43,21.6329]
[1721922796064,20.0,170.49,170.43,21.6329]
[1721922796252,45.0,170.48,170.43,27.5002]
[1721922796456,50.8659,170.48,170.43,21.6329]
[1721922797640,45.0,170.48,170.43,27.5003]
[1721922798367,50.8659,170.48,170.43,21.6329]
[1721922798566,45.0,170.48,170.43,21.6329]
[1721922798775,45.0,170.49,170.43,21.6329]
[1721922799149,5.8668,170.45,170.43,21.6329]
[1721922799637,46.02168131,170.49,170.43,21.6329]
[1721922799842,20.0,170.48,170.43,27.5003]
[1721922800058,45.0,170.47,170.43,21.6329]
[1721922800283,50.8661,170.47,170.43,21.6329]
[1721922800566,45.0,170.47,170.43,27.5002]
[1721922800750,5.8648,170.51,170.45,5.8667]
[1721922800954,20.0,170.5,170.43,21.6329]
[1721922801159,5.8658,170.48,170.43,21.6329]
[1721922801361,5.866,170.48,170.43,21.6329]
[1721922802058,45.0,170.47,170.43,21.6329]
[1721922802241,45.0,170.47,170.38,30.2994]
[1721922802445,5.8674,170.44,170.38,36.1685]
[1721922802647,45.0,170.43,170.38,15.6268]
[1721922802854,5.8685,170.4,170.38,15.6268]
[1721922803169,45.0,170.43,170.37,6.106]
[1721922803365,5.8689,170.39,170.35,0.7998558]
[1721922803671,5.8689,170.39,170.34,18.6841558]
[1721922804046,5.8686,170.4,170.34,24.5546558]
[1721922804245,65.0,170.39,170.34,18.6841558]
[1721922804773,70.8691,170.39,170.34,18.6841558]
[1721922805161,5.8692,170.38,170.34,18.6841558]
[1721922805365,70.8689,170.39,170.34,18.6841558]
[1721922805567,50.8689,170.39,170.34,18.6841558]
[1721922806472,45.0,170.39,170.34,18.6841558]
[1721922807672,5.8696,170.37,170.34,18.6841558]
[1721922808457,5.8696,170.37,170.32,14.6782]
[1721922808779,45.0,170.39,170.32,14.6782]